[Event "Titled Tuesday Blitz March 28 Late 2023"]
[White "Stanisz, Patryk"]
[Black "Torrente, Alejandro Josue"]
[WhiteFideId "1123106"]
[BlackFideId "4437969"]
[WhiteElo "2069"]
[BlackElo "2025"]
[Result "0-1"]
[Round "05"]
[TimeControl "180+2"]
[Date "2023.03.28"]
[WhiteClock "0:00:02"]
[BlackClock "0:00:12"]

1. d4 {[%clk 0:03:00]}  d5 {[%clk 0:02:59]} 2. c4 {[%clk 0:02:59]}  c6 {[%clk 0:03:00]} 3. Nf3 {[%clk 0:02:59]}  Nf6 {[%clk 0:03:00]} 4. Nc3 {[%clk 0:02:59]}  a6 {[%clk 0:03:00]} 5. e3 {[%clk 0:02:51]}  Bf5 {[%clk 0:02:54]} 6. Nh4 {[%clk 0:02:44]}  Bc8 {[%clk 0:02:40]} 7. Nf3 {[%clk 0:02:42]}  g6 {[%clk 0:02:39]} 8. Bd3 {[%clk 0:02:33]}  Bg7 {[%clk 0:02:38]} 9. O-O {[%clk 0:02:32]}  O-O {[%clk 0:02:38]} 10. e4 {[%clk 0:02:30]}  dxe4 {[%clk 0:02:32]} 11. Nxe4 {[%clk 0:02:31]}  Nxe4 {[%clk 0:02:30]} 12. Bxe4 {[%clk 0:02:32]}  Nd7 {[%clk 0:02:26]} 13. Bf4 {[%clk 0:02:26]}  Nf6 {[%clk 0:02:25]} 14. Bc2 {[%clk 0:02:18]}  Bg4 {[%clk 0:02:25]} 15. Be5 {[%clk 0:02:18]}  Qb6 {[%clk 0:02:12]} 16. Rb1 {[%clk 0:02:12]}  Rfd8 {[%clk 0:02:06]} 17. h3 {[%clk 0:02:10]}  Be6 {[%clk 0:02:03]} 18. b3 {[%clk 0:02:09]}  h6 {[%clk 0:01:59]} 19. Qe2 {[%clk 0:02:04]}  a5 {[%clk 0:01:57]} 20. Rbd1 {[%clk 0:01:43]}  Bf5 {[%clk 0:01:40]} 21. Bxf5 {[%clk 0:01:39]}  gxf5 {[%clk 0:01:41]} 22. Nh4 {[%clk 0:01:29]}  e6 {[%clk 0:01:41]} 23. Rd3 {[%clk 0:01:27]}  Ne4 {[%clk 0:01:36]} 24. Bxg7 {[%clk 0:01:18]}  Kxg7 {[%clk 0:01:37]} 25. Rfd1 {[%clk 0:01:05]}  a4 {[%clk 0:01:33]} 26. f3 {[%clk 0:01:01]}  Nf6 {[%clk 0:01:24]} 27. Qe5 {[%clk 0:00:56]}  axb3 {[%clk 0:01:20]} 28. axb3 {[%clk 0:00:55]}  Rd7 {[%clk 0:00:55]} 29. f4 {[%clk 0:00:50]}  Qd8 {[%clk 0:00:53]} 30. Rg3+ {[%clk 0:00:45]}  Kh7 {[%clk 0:00:44]} 31. Kh2 {[%clk 0:00:18]}  Ra5 {[%clk 0:00:44]} 32. Qe3 {[%clk 0:00:15]}  Ne4 {[%clk 0:00:43]} 33. Nf3 {[%clk 0:00:05]}  Nxg3 {[%clk 0:00:39]} 34. Kxg3 {[%clk 0:00:06]}  Qf6 {[%clk 0:00:32]} 35. Ne5 {[%clk 0:00:06]}  Rd8 {[%clk 0:00:32]} 36. Kh2 {[%clk 0:00:06]}  Ra3 {[%clk 0:00:30]} 37. Qc3 {[%clk 0:00:04]}  Ra2 {[%clk 0:00:26]} 38. Rd3 {[%clk 0:00:03]}  Rg8 {[%clk 0:00:26]} 39. Rg3 {[%clk 0:00:04]}  Rxg3 {[%clk 0:00:24]} 40. Qxg3 {[%clk 0:00:05]}  Qg7 {[%clk 0:00:25]} 41. Qf3 {[%clk 0:00:05]}  f6 {[%clk 0:00:22]} 42. Nd3 {[%clk 0:00:05]}  Qd7 {[%clk 0:00:22]} 43. Nc5 {[%clk 0:00:04]}  Qxd4 {[%clk 0:00:19]} 44. Nxe6 {[%clk 0:00:04]}  Qd7 {[%clk 0:00:17]} 45. Nc5 {[%clk 0:00:04]}  Qe7 {[%clk 0:00:16]} 46. Nd3 {[%clk 0:00:02]}  Re2 {[%clk 0:00:13]} 47. b4 {[%clk 0:00:02]}  Qe3 {[%clk 0:00:12]} 48. Qxe3 {[%clk 0:00:02]}  Rxe3 {[%clk 0:00:13]} 49. Nc5 {[%clk 0:00:02]}  b6 {[%clk 0:00:13]} 50. Nd7 {[%clk 0:00:02]}  b5 {[%clk 0:00:12]} 51. cxb5 {[%clk 0:00:02]}  cxb5 {[%clk 0:00:13]} 52. Nxf6+ {[%clk 0:00:03]}  Kg6 {[%clk 0:00:13]} 53. Nd5 {[%clk 0:00:04]}  Rd3 {[%clk 0:00:11]} 54. Nc7 {[%clk 0:00:04]}  Rd4 {[%clk 0:00:10]} 55. Nxb5 {[%clk 0:00:04]}  Rxf4 {[%clk 0:00:10]} 56. Nc7 {[%clk 0:00:05]}  Rxb4 {[%clk 0:00:10]} 57. Nd5 {[%clk 0:00:05]}  Rd4 {[%clk 0:00:10]} 58. Ne7+ {[%clk 0:00:04]}  Kf6 {[%clk 0:00:09]} 59. Nc6 {[%clk 0:00:04]}  Rd6 {[%clk 0:00:09]} 60. Nb4 {[%clk 0:00:04]}  f4 {[%clk 0:00:09]} 61. Kg1 {[%clk 0:00:04]}  Kf5 {[%clk 0:00:09]} 62. Kf2 {[%clk 0:00:05]}  Rd2+ {[%clk 0:00:09]} 63. Kf3 {[%clk 0:00:05]}  Rb2 {[%clk 0:00:08]} 64. Nc6 {[%clk 0:00:04]}  Rb3+ {[%clk 0:00:09]} 65. Kf2 {[%clk 0:00:04]}  Rc3 {[%clk 0:00:09]} 66. Ne7+ {[%clk 0:00:03]}  Ke4 {[%clk 0:00:10]} 67. Ng6 {[%clk 0:00:02]}  Rc2+ {[%clk 0:00:10]} 68. Kg1 {[%clk 0:00:02]}  f3 {[%clk 0:00:10]} 69. gxf3+ {[%clk 0:00:02]}  Kxf3 {[%clk 0:00:11]} 70. Ne5+ {[%clk 0:00:02]}  Kg3 {[%clk 0:00:12]} 71. Nf7 {[%clk 0:00:02]}  Rc1# {[%clk 0:00:12]} 0-1


[Site "https://www.chess.com"]

[Event "Titled Tuesday Blitz March 28 Late 2023"]
[White "sissahungrychess"]
[Black "Barria Santos, Jose Guilherme"]
[BlackFideId "1939300"]
[WhiteElo "2379"]
[BlackElo "2301"]
[Result "1-0"]
[Round "05"]
[TimeControl "180+2"]
[Date "2023.03.28"]
[WhiteClock "0:00:34"]
[BlackClock "0:00:06"]

1. c4 {[%clk 0:03:00]}  Nf6 {[%clk 0:02:53]} 2. g3 {[%clk 0:03:00]}  g6 {[%clk 0:02:53]} 3. Bg2 {[%clk 0:03:01]}  Bg7 {[%clk 0:02:54]} 4. Nf3 {[%clk 0:03:02]}  O-O {[%clk 0:02:54]} 5. O-O {[%clk 0:03:02]}  d6 {[%clk 0:02:54]} 6. Nc3 {[%clk 0:03:03]}  Nc6 {[%clk 0:02:55]} 7. d3 {[%clk 0:03:01]}  e5 {[%clk 0:02:55]} 8. Rb1 {[%clk 0:03:02]}  h6 {[%clk 0:02:32]} 9. b4 {[%clk 0:03:01]}  Be6 {[%clk 0:02:31]} 10. b5 {[%clk 0:02:56]}  Ne7 {[%clk 0:02:31]} 11. Ba3 {[%clk 0:02:54]}  a6 {[%clk 0:02:30]} 12. Qb3 {[%clk 0:02:31]}  axb5 {[%clk 0:02:25]} 13. Nxb5 {[%clk 0:02:32]}  Nc6 {[%clk 0:02:12]} 14. Nc3 {[%clk 0:02:15]}  Qd7 {[%clk 0:01:56]} 15. Bb2 {[%clk 0:01:49]}  Rab8 {[%clk 0:01:41]} 16. Nd5 {[%clk 0:01:46]}  Bxd5 {[%clk 0:01:23]} 17. cxd5 {[%clk 0:01:47]}  Na5 {[%clk 0:01:22]} 18. Qb4 {[%clk 0:01:36]}  b6 {[%clk 0:01:17]} 19. e4 {[%clk 0:01:36]}  Nb7 {[%clk 0:01:14]} 20. d4 {[%clk 0:01:30]}  Nxe4 {[%clk 0:01:02]} 21. dxe5 {[%clk 0:01:29]}  Nbc5 {[%clk 0:01:00]} 22. exd6 {[%clk 0:01:13]}  Bxb2 {[%clk 0:00:53]} 23. Qxb2 {[%clk 0:01:14]}  Qxd6 {[%clk 0:00:45]} 24. Rfd1 {[%clk 0:01:03]}  Na4 {[%clk 0:00:35]} 25. Qd4 {[%clk 0:00:54]}  Nec3 {[%clk 0:00:32]} 26. Ne5 {[%clk 0:00:50]}  Nxb1 {[%clk 0:00:18]} 27. Ng4 {[%clk 0:00:49]}  Kh7 {[%clk 0:00:17]} 28. Nf6+ {[%clk 0:00:49]}  Qxf6 {[%clk 0:00:15]} 29. Qxf6 {[%clk 0:00:49]}  Nbc3 {[%clk 0:00:14]} 30. Rd3 {[%clk 0:00:44]}  Nb5 {[%clk 0:00:10]} 31. h4 {[%clk 0:00:40]}  Nc5 {[%clk 0:00:10]} 32. Re3 {[%clk 0:00:40]}  Nd6 {[%clk 0:00:10]} 33. h5 {[%clk 0:00:39]}  Ra8 {[%clk 0:00:06]} 34. hxg6+ {[%clk 0:00:38]}  fxg6 {[%clk 0:00:07]} 35. Re7+ {[%clk 0:00:38]}  Rf7 {[%clk 0:00:05]} 36. Rxf7+ {[%clk 0:00:35]}  Nxf7 {[%clk 0:00:05]} 37. Qxf7+ {[%clk 0:00:35]}  Kh8 {[%clk 0:00:06]} 38. d6 {[%clk 0:00:35]}  Rxa2 {[%clk 0:00:06]} 39. Qxa2 {[%clk 0:00:34]} 1-0


[Site "https://www.chess.com"]

[Event "Titled Tuesday Blitz March 28 Late 2023"]
[White "ArturoCaceres"]
[Black "dDobravcan"]
[WhiteElo "2377"]
[BlackElo "2138"]
[Result "1-0"]
[Round "05"]
[TimeControl "180+2"]
[Date "2023.03.28"]
[WhiteClock "0:00:06"]
[BlackClock "0:00:01"]

1. e4 {[%clk 0:03:00]}  d6 {[%clk 0:02:59]} 2. d4 {[%clk 0:02:47]}  Nf6 {[%clk 0:02:58]} 3. Nc3 {[%clk 0:02:46]}  c6 {[%clk 0:02:58]} 4. f4 {[%clk 0:02:42]}  Qa5 {[%clk 0:02:57]} 5. Bd3 {[%clk 0:02:41]}  e5 {[%clk 0:02:56]} 6. dxe5 {[%clk 0:02:40]}  dxe5 {[%clk 0:02:52]} 7. Bd2 {[%clk 0:02:40]}  Nbd7 {[%clk 0:02:37]} 8. Nf3 {[%clk 0:02:29]}  exf4 {[%clk 0:02:31]} 9. O-O {[%clk 0:02:13]}  Bc5+ {[%clk 0:02:20]} 10. Kh1 {[%clk 0:02:13]}  Ng4 {[%clk 0:02:14]} 11. Qe2 {[%clk 0:01:55]}  Be3 {[%clk 0:02:07]} 12. h3 {[%clk 0:01:32]}  Qh5 {[%clk 0:02:05]} 13. Nh2 {[%clk 0:01:25]}  Nde5 {[%clk 0:01:53]} 14. Bxe3 {[%clk 0:00:56]}  fxe3 {[%clk 0:01:48]} 15. Rf5 {[%clk 0:00:43]}  Qh4 {[%clk 0:01:36]} 16. hxg4 {[%clk 0:00:40]}  Nxg4 {[%clk 0:01:34]} 17. Qxg4 {[%clk 0:00:41]}  Qxg4 {[%clk 0:01:25]} 18. Nxg4 {[%clk 0:00:41]}  Bxf5 {[%clk 0:01:25]} 19. exf5 {[%clk 0:00:42]}  O-O-O {[%clk 0:01:19]} 20. Nxe3 {[%clk 0:00:40]}  Rhe8 {[%clk 0:01:20]} 21. Ne4 {[%clk 0:00:38]}  Re5 {[%clk 0:01:08]} 22. g4 {[%clk 0:00:32]}  h5 {[%clk 0:01:06]} 23. Nc4 {[%clk 0:00:28]}  Red5 {[%clk 0:01:00]} 24. g5 {[%clk 0:00:23]}  Kc7 {[%clk 0:00:59]} 25. Ne3 {[%clk 0:00:22]}  Re5 {[%clk 0:00:53]} 26. Rf1 {[%clk 0:00:22]}  h4 {[%clk 0:00:46]} 27. Rf4 {[%clk 0:00:22]}  Rh8 {[%clk 0:00:42]} 28. Kh2 {[%clk 0:00:22]}  b6 {[%clk 0:00:40]} 29. Kh3 {[%clk 0:00:21]}  c5 {[%clk 0:00:39]} 30. Ng4 {[%clk 0:00:21]}  Ree8 {[%clk 0:00:32]} 31. b3 {[%clk 0:00:16]}  Kc6 {[%clk 0:00:30]} 32. a4 {[%clk 0:00:15]}  Rd8 {[%clk 0:00:23]} 33. Ne3 {[%clk 0:00:14]}  Rd4 {[%clk 0:00:20]} 34. Rxh4 {[%clk 0:00:12]}  Re8 {[%clk 0:00:16]} 35. Rf4 {[%clk 0:00:12]}  a6 {[%clk 0:00:13]} 36. Kg3 {[%clk 0:00:06]}  b5 {[%clk 0:00:13]} 37. axb5+ {[%clk 0:00:07]}  axb5 {[%clk 0:00:13]} 38. Kf3 {[%clk 0:00:08]}  c4 {[%clk 0:00:11]} 39. bxc4 {[%clk 0:00:08]}  bxc4 {[%clk 0:00:11]} 40. Nxc4 {[%clk 0:00:08]}  Kd5 {[%clk 0:00:08]} 41. Ncd2 {[%clk 0:00:03]}  Ke5 {[%clk 0:00:07]} 42. Nc4+ {[%clk 0:00:03]}  Kd5 {[%clk 0:00:07]} 43. Ne3+ {[%clk 0:00:04]}  Ke5 {[%clk 0:00:06]} 44. Ng4+ {[%clk 0:00:04]}  Kd5 {[%clk 0:00:05]} 45. f6 {[%clk 0:00:05]}  g6 {[%clk 0:00:04]} 46. Ke3 {[%clk 0:00:05]}  Ra4 {[%clk 0:00:02]} 47. c4+ {[%clk 0:00:05]}  Kc6 {[%clk 0:00:01]} 48. Kd4 {[%clk 0:00:06]} 1-0


[Site "https://www.chess.com"]

[Event "Titled Tuesday Blitz March 28 Late 2023"]
[White "Bolanos, Fernando"]
[Black "Hartikainen, Jarmo"]
[WhiteFideId "3304094"]
[BlackFideId "503134"]
[WhiteElo "2166"]
[BlackElo "2134"]
[Result "0-1"]
[Round "05"]
[TimeControl "180+2"]
[Date "2023.03.28"]
[WhiteClock "0:01:21"]
[BlackClock "0:00:08"]

1. e4 {[%clk 0:02:51]}  c5 {[%clk 0:02:59]} 2. Nf3 {[%clk 0:02:50]}  Nc6 {[%clk 0:02:59]} 3. d4 {[%clk 0:02:49]}  cxd4 {[%clk 0:02:59]} 4. Nxd4 {[%clk 0:02:50]}  Nf6 {[%clk 0:02:59]} 5. Nc3 {[%clk 0:02:50]}  d6 {[%clk 0:02:59]} 6. Bg5 {[%clk 0:02:47]}  e6 {[%clk 0:02:58]} 7. Qd2 {[%clk 0:02:47]}  a6 {[%clk 0:02:58]} 8. O-O-O {[%clk 0:02:47]}  Bd7 {[%clk 0:02:59]} 9. f4 {[%clk 0:02:47]}  h6 {[%clk 0:02:58]} 10. Bxf6 {[%clk 0:02:46]}  Qxf6 {[%clk 0:02:58]} 11. Nf3 {[%clk 0:02:46]}  Qd8 {[%clk 0:02:58]} 12. Kb1 {[%clk 0:02:46]}  Qc7 {[%clk 0:02:57]} 13. Bd3 {[%clk 0:02:41]}  O-O-O {[%clk 0:02:57]} 14. g4 {[%clk 0:02:40]}  Be7 {[%clk 0:02:52]} 15. h4 {[%clk 0:02:40]}  Kb8 {[%clk 0:02:43]} 16. Rhg1 {[%clk 0:02:38]}  Bc8 {[%clk 0:02:41]} 17. f5 {[%clk 0:02:38]}  Ne5 {[%clk 0:02:31]} 18. Nxe5 {[%clk 0:02:13]}  dxe5 {[%clk 0:02:30]} 19. Rdf1 {[%clk 0:02:09]}  Bxh4 {[%clk 0:02:27]} 20. Qe2 {[%clk 0:01:59]}  Bf6 {[%clk 0:02:06]} 21. Bc4 {[%clk 0:01:58]}  Rd4 {[%clk 0:02:01]} 22. Bb3 {[%clk 0:01:56]}  Rhd8 {[%clk 0:02:00]} 23. fxe6 {[%clk 0:01:56]}  fxe6 {[%clk 0:01:49]} 24. a3 {[%clk 0:01:54]}  Bg5 {[%clk 0:01:28]} 25. Qf3 {[%clk 0:01:45]}  Bf4 {[%clk 0:01:24]} 26. Ne2 {[%clk 0:01:45]}  Rd2 {[%clk 0:00:49]} 27. Nxf4 {[%clk 0:01:44]}  exf4 {[%clk 0:00:48]} 28. Qxf4 {[%clk 0:01:45]}  Rd1+ {[%clk 0:00:46]} 29. Ka2 {[%clk 0:01:45]}  Qxf4 {[%clk 0:00:45]} 30. Rxf4 {[%clk 0:01:46]}  Rxg1 {[%clk 0:00:45]} 31. Rf7 {[%clk 0:01:47]}  Rd7 {[%clk 0:00:37]} 32. Rf8 {[%clk 0:01:46]}  Re7 {[%clk 0:00:32]} 33. e5 {[%clk 0:01:43]}  Rxg4 {[%clk 0:00:31]} 34. Rh8 {[%clk 0:01:42]}  Rg5 {[%clk 0:00:30]} 35. Bc4 {[%clk 0:01:40]}  Rxe5 {[%clk 0:00:28]} 36. c3 {[%clk 0:01:40]}  h5 {[%clk 0:00:25]} 37. Kb3 {[%clk 0:01:40]}  Kc7 {[%clk 0:00:22]} 38. Kc2 {[%clk 0:01:38]}  Bd7 {[%clk 0:00:21]} 39. Be2 {[%clk 0:01:35]}  g6 {[%clk 0:00:19]} 40. Bd3 {[%clk 0:01:35]}  Rg5 {[%clk 0:00:18]} 41. b4 {[%clk 0:01:35]}  Rf7 {[%clk 0:00:18]} 42. Kb3 {[%clk 0:01:29]}  Rg3 {[%clk 0:00:17]} 43. Be4 {[%clk 0:01:29]}  Rf4 {[%clk 0:00:16]} 44. Bh1 {[%clk 0:01:29]}  Rf1 {[%clk 0:00:16]} 45. Be4 {[%clk 0:01:29]}  Rc1 {[%clk 0:00:14]} 46. Bc2 {[%clk 0:01:28]}  Rg2 {[%clk 0:00:14]} 47. Be4 {[%clk 0:01:28]}  Re2 {[%clk 0:00:13]} 48. Bd3 {[%clk 0:01:26]}  Re3 {[%clk 0:00:13]} 49. Bc2 {[%clk 0:01:27]}  Rg1 {[%clk 0:00:11]} 50. Rh7 {[%clk 0:01:26]}  e5 {[%clk 0:00:11]} 51. a4 {[%clk 0:01:25]}  e4 {[%clk 0:00:11]} 52. b5 {[%clk 0:01:25]}  Rgg3 {[%clk 0:00:11]} 53. Kb4 {[%clk 0:01:23]}  Rxc3 {[%clk 0:00:11]} 54. Bxe4 {[%clk 0:01:24]}  axb5 {[%clk 0:00:08]} 55. axb5 {[%clk 0:01:24]}  Rb3+ {[%clk 0:00:09]} 56. Kc4 {[%clk 0:01:23]}  Rxb5 {[%clk 0:00:09]} 57. Bd5 {[%clk 0:01:20]}  Rg4+ {[%clk 0:00:09]} 58. Kc3 {[%clk 0:01:19]}  Rxd5 {[%clk 0:00:09]} 59. Kc2 {[%clk 0:01:19]}  Rf5 {[%clk 0:00:09]} 60. Kd3 {[%clk 0:01:19]}  Rf3+ {[%clk 0:00:09]} 61. Ke2 {[%clk 0:01:20]}  Ra3 {[%clk 0:00:08]} 62. Kf2 {[%clk 0:01:20]}  Rh4 {[%clk 0:00:08]} 63. Kg2 {[%clk 0:01:20]}  Rb4 {[%clk 0:00:07]} 64. Re7 {[%clk 0:01:17]}  Rb2+ {[%clk 0:00:07]} 65. Kf1 {[%clk 0:01:17]}  Ra1+ {[%clk 0:00:07]} 66. Re1 {[%clk 0:01:18]}  Rxe1+ {[%clk 0:00:07]} 67. Kxe1 {[%clk 0:01:18]}  Bc6 {[%clk 0:00:07]} 68. Kf1 {[%clk 0:01:19]}  h4 {[%clk 0:00:07]} 69. Kg1 {[%clk 0:01:20]}  h3 {[%clk 0:00:08]} 70. Kf1 {[%clk 0:01:21]}  h2 {[%clk 0:00:08]} 71. Ke1 {[%clk 0:01:21]}  h1=Q# {[%clk 0:00:08]} 0-1


[Site "https://www.chess.com"]

[Event "Titled Tuesday Blitz March 28 Late 2023"]
[White "Sanchez, Robert"]
[Black "sebastianmarinp"]
[WhiteFideId "2034360"]
[WhiteElo "2088"]
[BlackElo "2284"]
[Result "0-1"]
[Round "05"]
[TimeControl "180+2"]
[Date "2023.03.28"]
[WhiteClock "0:00:09"]
[BlackClock "0:00:13"]

1. e4 {[%clk 0:03:00]}  e5 {[%clk 0:02:56]} 2. Nf3 {[%clk 0:03:01]}  Nc6 {[%clk 0:02:56]} 3. Bb5 {[%clk 0:03:01]}  a6 {[%clk 0:02:56]} 4. Ba4 {[%clk 0:02:59]}  Nf6 {[%clk 0:02:57]} 5. O-O {[%clk 0:02:59]}  b5 {[%clk 0:02:55]} 6. Bb3 {[%clk 0:02:59]}  Bb7 {[%clk 0:02:56]} 7. Re1 {[%clk 0:03:00]}  Bc5 {[%clk 0:02:55]} 8. c3 {[%clk 0:03:00]}  d6 {[%clk 0:02:46]} 9. d4 {[%clk 0:03:00]}  Bb6 {[%clk 0:02:46]} 10. a4 {[%clk 0:02:50]}  h6 {[%clk 0:02:40]} 11. Na3 {[%clk 0:02:45]}  O-O {[%clk 0:02:05]} 12. Rb1 {[%clk 0:02:23]}  exd4 {[%clk 0:01:53]} 13. cxd4 {[%clk 0:02:23]}  Re8 {[%clk 0:01:44]} 14. Bc2 {[%clk 0:01:56]}  Nb4 {[%clk 0:01:37]} 15. d5 {[%clk 0:01:56]}  c6 {[%clk 0:01:24]} 16. dxc6 {[%clk 0:01:48]}  Bxc6 {[%clk 0:01:25]} 17. e5 {[%clk 0:01:42]}  Bxf3 {[%clk 0:00:55]} 18. Qxf3 {[%clk 0:01:40]}  Nxc2 {[%clk 0:00:55]} 19. Nxc2 {[%clk 0:01:38]}  dxe5 {[%clk 0:00:55]} 20. axb5 {[%clk 0:01:37]}  axb5 {[%clk 0:00:56]} 21. Be3 {[%clk 0:01:33]}  e4 {[%clk 0:00:50]} 22. Qf5 {[%clk 0:01:32]}  Qd5 {[%clk 0:00:44]} 23. Qh3 {[%clk 0:01:24]}  Bc7 {[%clk 0:00:37]} 24. Red1 {[%clk 0:01:15]}  Qe6 {[%clk 0:00:29]} 25. Qxe6 {[%clk 0:01:11]}  Rxe6 {[%clk 0:00:30]} 26. Nd4 {[%clk 0:01:07]}  Rb6 {[%clk 0:00:24]} 27. Nf5 {[%clk 0:01:07]}  Rb7 {[%clk 0:00:24]} 28. Rbc1 {[%clk 0:01:04]}  Be5 {[%clk 0:00:24]} 29. b4 {[%clk 0:00:58]}  Kh7 {[%clk 0:00:20]} 30. h3 {[%clk 0:00:53]}  Ra4 {[%clk 0:00:20]} 31. Bc5 {[%clk 0:00:52]}  Ra2 {[%clk 0:00:18]} 32. Rd8 {[%clk 0:00:47]}  Nh5 {[%clk 0:00:17]} 33. g3 {[%clk 0:00:34]}  g6 {[%clk 0:00:17]} 34. Ne3 {[%clk 0:00:28]}  Ng7 {[%clk 0:00:17]} 35. Ng4 {[%clk 0:00:22]}  Ne6 {[%clk 0:00:16]} 36. Re8 {[%clk 0:00:15]}  Bg7 {[%clk 0:00:15]} 37. Rd1 {[%clk 0:00:11]}  h5 {[%clk 0:00:15]} 38. Ne3 {[%clk 0:00:11]}  Nxc5 {[%clk 0:00:15]} 39. bxc5 {[%clk 0:00:12]}  b4 {[%clk 0:00:16]} 40. Rdd8 {[%clk 0:00:10]}  b3 {[%clk 0:00:15]} 41. c6 {[%clk 0:00:09]}  b2 {[%clk 0:00:13]} 0-1


[Site "https://www.chess.com"]

[Event "Titled Tuesday Blitz March 28 Late 2023"]
[White "Torres Dominguez, David"]
[Black "dorpato"]
[WhiteFideId "2220857"]
[WhiteElo "1999"]
[BlackElo "2030"]
[Result "0-1"]
[Round "05"]
[TimeControl "180+2"]
[Date "2023.03.28"]
[WhiteClock "0:00:44"]
[BlackClock "0:00:20"]

1. e4 {[%clk 0:02:51]}  c5 {[%clk 0:02:59]} 2. Nc3 {[%clk 0:02:50]}  g6 {[%clk 0:02:58]} 3. d4 {[%clk 0:02:48]}  cxd4 {[%clk 0:02:57]} 4. Qxd4 {[%clk 0:02:48]}  Nf6 {[%clk 0:02:56]} 5. Bb5 {[%clk 0:02:47]}  a6 {[%clk 0:02:55]} 6. e5 {[%clk 0:02:43]}  Ng8 {[%clk 0:02:48]} 7. e6 {[%clk 0:02:42]}  f6 {[%clk 0:02:46]} 8. exd7+ {[%clk 0:02:28]}  Bxd7 {[%clk 0:02:45]} 9. Bxd7+ {[%clk 0:02:27]}  Qxd7 {[%clk 0:02:45]} 10. Qxd7+ {[%clk 0:02:27]}  Nxd7 {[%clk 0:02:43]} 11. Be3 {[%clk 0:02:28]}  e6 {[%clk 0:02:39]} 12. O-O-O {[%clk 0:02:27]}  Rc8 {[%clk 0:02:36]} 13. Nge2 {[%clk 0:02:27]}  Bc5 {[%clk 0:02:34]} 14. Bxc5 {[%clk 0:02:26]}  Nxc5 {[%clk 0:02:32]} 15. Rhe1 {[%clk 0:02:26]}  Kf7 {[%clk 0:02:28]} 16. Nf4 {[%clk 0:02:23]}  e5 {[%clk 0:02:09]} 17. Nd3 {[%clk 0:02:23]}  Ne7 {[%clk 0:02:05]} 18. Nxc5 {[%clk 0:02:22]}  Rxc5 {[%clk 0:02:05]} 19. Rd7 {[%clk 0:02:23]}  b5 {[%clk 0:01:57]} 20. Nd5 {[%clk 0:02:15]}  Rxd5 {[%clk 0:01:56]} 21. Ra7 {[%clk 0:02:11]}  Rd6 {[%clk 0:01:54]} 22. f4 {[%clk 0:02:11]}  Re6 {[%clk 0:01:45]} 23. fxe5 {[%clk 0:02:09]}  Rxe5 {[%clk 0:01:30]} 24. Rxe5 {[%clk 0:02:09]}  fxe5 {[%clk 0:01:29]} 25. Rxa6 {[%clk 0:02:10]}  Rb8 {[%clk 0:01:25]} 26. c3 {[%clk 0:02:06]}  h5 {[%clk 0:01:20]} 27. Kd2 {[%clk 0:02:06]}  Nd5 {[%clk 0:01:13]} 28. g3 {[%clk 0:02:04]}  Nb6 {[%clk 0:01:10]} 29. b3 {[%clk 0:02:00]}  Kf6 {[%clk 0:01:03]} 30. c4 {[%clk 0:01:58]}  bxc4 {[%clk 0:01:02]} 31. bxc4 {[%clk 0:01:59]}  Kf5 {[%clk 0:01:02]} 32. c5 {[%clk 0:01:57]}  Nd5 {[%clk 0:00:56]} 33. c6 {[%clk 0:01:54]}  Rc8 {[%clk 0:00:56]} 34. h3 {[%clk 0:01:43]}  Nb4 {[%clk 0:00:46]} 35. g4+ {[%clk 0:01:43]}  hxg4 {[%clk 0:00:45]} 36. hxg4+ {[%clk 0:01:44]}  Kg5 {[%clk 0:00:39]} 37. Ra5 {[%clk 0:01:37]}  Nxc6 {[%clk 0:00:38]} 38. Ke3 {[%clk 0:01:33]}  Re8 {[%clk 0:00:36]} 39. Ke4 {[%clk 0:01:29]}  Kxg4 {[%clk 0:00:34]} 40. Rc5 {[%clk 0:01:26]}  Nb4 {[%clk 0:00:31]} 41. a4 {[%clk 0:01:25]}  g5 {[%clk 0:00:28]} 42. a5 {[%clk 0:01:24]}  Na6 {[%clk 0:00:23]} 43. Rc4 {[%clk 0:01:23]}  Kg3 {[%clk 0:00:20]} 44. Kf5 {[%clk 0:01:22]}  e4 {[%clk 0:00:20]} 45. Kxg5 {[%clk 0:01:17]}  e3 {[%clk 0:00:20]} 46. Rc3 {[%clk 0:01:13]}  Kf2 {[%clk 0:00:19]} 47. Kf4 {[%clk 0:01:09]}  e2 {[%clk 0:00:19]} 48. Rf3+ {[%clk 0:01:09]}  Ke1 {[%clk 0:00:19]} 49. Kg3 {[%clk 0:01:00]}  Rg8+ {[%clk 0:00:18]} 50. Kh2 {[%clk 0:00:57]}  Rd8 {[%clk 0:00:18]} 51. Rf6 {[%clk 0:00:54]}  Nb4 {[%clk 0:00:17]} 52. a6 {[%clk 0:00:51]}  Kd2 {[%clk 0:00:17]} 53. Re6 {[%clk 0:00:43]}  e1=Q {[%clk 0:00:16]} 54. Rxe1 {[%clk 0:00:43]}  Kxe1 {[%clk 0:00:17]} 55. a7 {[%clk 0:00:43]}  Ra8 {[%clk 0:00:17]} 56. Kg3 {[%clk 0:00:42]}  Rxa7 {[%clk 0:00:18]} 57. Kf3 {[%clk 0:00:43]}  Re7 {[%clk 0:00:19]} 58. Kf4 {[%clk 0:00:43]}  Kd2 {[%clk 0:00:20]} 59. Kf5 {[%clk 0:00:44]}  Kd3 {[%clk 0:00:20]} 0-1


[Site "https://www.chess.com"]